bitfinex-derivatives/quotes_BTCF0:USTF0_20241013
["timestamp","ask_amount","ask_price","bid_price","bid_amount"]
[1728850607397,0.191796,62669.0,62668.0,0.19026395]
[1728850608505,0.192796,62669.0,62668.0,0.19026395]
[1728850609412,0.192796,62669.0,62668.0,0.18980917]
[1728850611208,0.15286891,62669.0,62668.0,0.18980917]
[1728850611506,0.15286891,62669.0,62668.0,0.079797]
[1728850612005,0.07307291,62669.0,62668.0,0.079797]
[1728850612315,0.3608,62674.0,62673.0,0.079791]
[1728850612498,0.3608,62674.0,62673.0,0.189791]
[1728850613403,0.3678,62674.0,62673.0,0.190791]
[1728850613612,0.3738,62674.0,62673.0,0.191791]
[1728850613997,0.013,62674.0,62673.0,0.552591]
[1728850614299,0.0037,62681.0,62673.0,0.552591]
[1728850614300,0.0037,62681.0,62680.0,0.079782]
[1728850614507,0.079774,62686.0,62685.0,0.079775]
[1728850615806,0.092774,62686.0,62685.0,0.080775]
[1728850617210,0.102774,62686.0,62685.0,0.081775]
[1728850618110,0.102774,62686.0,62685.0,0.11100898]
[1728850621116,0.102774,62686.0,62685.0,0.002]
[1728850621305,0.573574,62686.0,62685.0,0.002]
[1728850622205,0.463574,62686.0,62685.0,0.002]
[1728850622411,0.102774,62686.0,62685.0,0.002]
[1728850624813,0.102774,62686.0,62685.0,0.081775]
[1728850625014,0.023,62686.0,62685.0,0.081775]
[1728850626413,0.102774,62686.0,62685.0,0.081775]
[1728850639325,0.573574,62686.0,62685.0,0.002]
[1728850643129,0.573574,62686.0,62680.0,0.04767517]
[1728850643130,1.79079837,62686.0,62680.0,0.04767517]
[1728850643333,0.079782,62680.0,62678.0,0.06247517]
[1728850643526,0.142683,62679.0,62678.0,0.04767517]
[1728850644220,0.079784,62678.0,62677.0,0.04767517]
[1728850644422,0.079784,62678.0,62675.0,0.04767517]
[1728850644423,0.22,62678.0,62675.0,0.04767517]
[1728850644728,0.142683,62679.0,62674.0,0.04770977]
[1728850644729,0.079788,62675.0,62674.0,0.04770977]
[1728850644928,0.189788,62675.0,62674.0,0.04770977]
[1728850645129,0.189788,62675.0,62672.0,0.00239329]
[1728850645130,0.1404,62675.0,62673.0,0.04770977]
[1728850645333,0.440589,62674.0,62673.0,0.04770977]
[1728850646720,0.440589,62674.0,62673.0,0.12750077]
[1728850647641,0.445589,62674.0,62673.0,0.12750077]
[1728850648025,0.452589,62674.0,62673.0,0.12850077]
[1728850648822,0.452589,62674.0,62673.0,0.080791]
[1728850651142,0.091789,62674.0,62673.0,0.080791]
[1728850653542,0.091789,62674.0,62673.0,0.001]
[1728850653835,0.201789,62674.0,62673.0,0.001]
[1728850656835,0.201789,62674.0,62673.0,0.04870977]
[1728850657432,0.201789,62674.0,62673.0,0.001]
[1728850658530,1.280469,62674.0,62673.0,0.001]
[1728850658749,0.680469,62674.0,62673.0,0.001]
[1728850658935,0.079793,62671.0,62670.0,0.04770977]
[1728850659145,0.550593,62671.0,62670.0,0.04770977]
[1728850660242,0.079796,62669.0,62667.0,0.04770977]
[1728850660445,0.252197,62668.0,62667.0,0.04770977]
[1728850660747,0.252197,62668.0,62665.0,0.04770977]
[1728850660748,0.1724,62668.0,62665.0,0.04770977]
[1728850661048,0.1898,62666.0,62665.0,0.04770977]
[1728850661443,0.079801,62665.0,62663.0,0.0635669]
[1728850661645,0.4708,62664.0,62662.0,0.1433709]
[1728850661833,0.079803,62663.0,62662.0,0.1433709]
[1728850662138,0.079803,62663.0,62662.0,0.0635669]
[1728850662139,0.0398702,62663.0,62662.0,0.0635669]
[1728850663247,0.4708,62664.0,62661.0,0.0635669]
[1728850663248,0.079805,62662.0,62661.0,0.0635669]
[1728850663442,0.189805,62662.0,62661.0,0.0635669]
[1728850663942,0.079806,62661.0,62660.0,0.079807]
[1728850666341,0.080806,62661.0,62660.0,0.087807]
[1728850666835,0.081806,62661.0,62660.0,0.094807]
[1728850671955,0.081806,62661.0,62660.0,0.28398762]
[1728850672255,0.081806,62661.0,62660.0,0.204529]
[1728850683060,0.081806,62661.0,62660.0,0.29987935]
[1728850684253,0.081806,62661.0,62660.0,0.204529]
[1728850686651,0.081806,62661.0,62660.0,0.3355286]
[1728850686845,0.081806,62661.0,62660.0,0.094807]
[1728850687951,0.0037,62667.0,62660.0,0.235]
[1728850688151,0.440598,62668.0,62666.0,0.11]
[1728850689166,0.440598,62668.0,62667.0,0.079798]
[1728850689461,0.47344905,62668.0,62667.0,0.079798]
[1728850689656,0.079798,62668.0,62667.0,0.079798]
[1728850690159,0.079798,62668.0,62667.0,0.080798]
[1728850692859,0.079798,62668.0,62667.0,0.10953399]
[1728850694052,0.079798,62668.0,62667.0,0.21928081]
[1728850694257,0.079798,62668.0,62667.0,0.29901419]
[1728850694458,0.079798,62668.0,62667.0,0.21928081]
[1728850694763,0.079798,62668.0,62667.0,0.29901409]
[1728850696863,0.079798,62668.0,62667.0,0.10953399]
[1728850702867,0.1127245,62668.0,62667.0,0.10953399]
[1728850704576,0.11271463,62668.0,62667.0,0.10953399]
[1728850707575,0.079798,62668.0,62667.0,0.10953399]
[1728850711291,0.03986971,62668.0,62667.0,0.21933671]
[1728850711979,0.03986971,62668.0,62667.0,0.31502518]
[1728850713183,0.03986971,62668.0,62667.0,0.21933671]
[1728850713976,0.03986971,62668.0,62667.0,0.31507369]
[1728850715479,0.03986971,62668.0,62667.0,0.21933671]
[1728850716374,0.03986971,62668.0,62667.0,0.34989562]
[1728850717176,0.07319778,62668.0,62667.0,0.10953399]
[1728850720177,0.3608,62673.0,62667.0,0.10953399]
[1728850720372,0.03333729,62672.0,62671.0,0.079793]
[1728850722482,0.03633729,62672.0,62671.0,0.079793]
[1728850723573,0.04133729,62672.0,62671.0,0.079793]
[1728850724183,0.008,62672.0,62671.0,0.18919644]
[1728850725188,0.197792,62672.0,62671.0,0.18919644]
[1728850732282,0.197792,62672.0,62671.0,0.079793]
[1728850737988,0.008,62672.0,62671.0,0.079793]
[1728850738296,0.008,62672.0,62671.0,0.29915172]
[1728850739191,0.04158394,62672.0,62671.0,0.189793]
[1728850741789,0.04158394,62672.0,62671.0,0.1947832]
[1728850743000,0.04158394,62672.0,62671.0,0.5555832]
[1728850743986,0.04158394,62672.0,62671.0,0.4455832]
[1728850744189,0.04158394,62672.0,62671.0,0.440593]
[1728850746385,0.15316856,62672.0,62671.0,0.440593]
[1728850746695,0.04158394,62672.0,62671.0,0.440593]
[1728850747200,0.11158462,62672.0,62671.0,0.68005074]
[1728850747791,0.11,62673.0,62672.0,0.079792]
[1728850747991,0.11,62673.0,62672.0,0.31924974]
[1728850749198,0.115,62673.0,62672.0,0.31924974]
[1728850749702,0.194791,62673.0,62672.0,0.31924974]
[1728850749899,0.304791,62673.0,62672.0,0.10924358]
[1728850750095,0.308791,62673.0,62672.0,0.10924358]
[1728850750804,0.198791,62673.0,62672.0,0.10924358]
[1728850751806,0.308791,62673.0,62672.0,0.10924358]
[1728850752101,0.47868,62672.0,62666.0,0.09572804]
[1728850752298,0.4708,62667.0,62663.0,0.0037]
[1728850752502,0.079805,62662.0,62661.0,0.0111]
[1728850752699,0.189805,62662.0,62658.0,0.09572804]
[1728850752896,0.079808,62659.0,62658.0,0.09572804]
[1728850753197,0.079808,62659.0,62654.0,0.4026564]
[1728850753198,0.07981,62658.0,62657.0,0.079811]
[1728850753398,0.18981,62658.0,62657.0,0.079811]
[1728850754203,0.18981,62658.0,62657.0,0.1276477]
[1728850754395,0.18981,62658.0,62657.0,0.079811]
[1728850754896,0.11,62658.0,62657.0,0.091811]
[1728850755103,0.001,62659.0,62658.0,0.07981]
[1728850755295,0.0037,62666.0,62665.0,0.079801]
[1728850755499,0.079791,62673.0,62667.0,0.079798]
[1728850755500,0.079798,62668.0,62667.0,0.079798]
[1728850756801,0.079794,62671.0,62670.0,0.079794]
[1728850757305,0.189794,62671.0,62670.0,0.079794]
[1728850757896,0.002,62671.0,62670.0,0.079794]
[1728850758907,0.005,62671.0,62670.0,0.079794]
[1728850759607,0.005,62671.0,62670.0,0.189794]
[1728850767210,0.005,62671.0,62670.0,0.19478424]
[1728850767510,0.005,62671.0,62670.0,1.44382827]
[1728850767706,0.005,62671.0,62670.0,0.84382827]
[1728850768506,0.005,62671.0,62670.0,0.84382808]
[1728850769318,0.005,62671.0,62670.0,0.73686405]
[1728850770010,0.005,62671.0,62670.0,1.09766405]
[1728850772706,0.005,62671.0,62670.0,1.092674]
[1728850772906,0.005,62671.0,62670.0,0.61898398]
[1728850776524,0.005,62671.0,62670.0,0.613994]
[1728850776822,0.005,62671.0,62670.0,0.508984]
[1728850777122,0.005,62671.0,62670.0,0.618984]
[1728850777324,0.0037,62676.0,62670.0,0.460692]
[1728850777517,0.00239398,62677.0,62676.0,0.079787]
[1728850779723,0.00539398,62677.0,62676.0,0.080787]
[1728850780624,0.00539398,62677.0,62676.0,0.081787]
[1728850780625,0.00939398,62677.0,62676.0,0.081787]
[1728850782325,0.08917998,62677.0,62676.0,0.081787]
[1728850783520,0.086786,62677.0,62676.0,0.081787]
[1728850784223,0.086786,62677.0,62676.0,0.11074634]
[1728850789127,0.007,62677.0,62676.0,0.11074634]
[1728850792425,0.007,62677.0,62676.0,0.21769469]
[1728850793623,0.007,62677.0,62676.0,0.21770774]
[1728850794626,0.007,62677.0,62676.0,0.31343578]
[1728850796433,0.007,62677.0,62676.0,0.21770774]
[1728850797135,0.007,62677.0,62676.0,0.34522287]
[1728850798034,0.007,62677.0,62676.0,0.21770774]
[1728850803044,0.0037,62684.0,62683.0,0.079778]
[1728850803244,0.0301,62688.0,62687.0,0.079773]
[1728850803452,0.0301,62688.0,62687.0,0.14360255]
[1728850804145,0.109872,62688.0,62687.0,0.14360255]
[1728850804351,0.109872,62688.0,62687.0,0.079773]
[1728850804551,0.109872,62688.0,62687.0,0.080773]
[1728850805753,0.110872,62688.0,62687.0,0.081773]
[1728850806460,0.110872,62688.0,62687.0,0.12962899]
[1728850806752,0.110872,62688.0,62687.0,0.081773]
[1728850807454,0.23877516,62688.0,62687.0,0.081773]
[1728850808356,0.38224111,62688.0,62687.0,0.081773]
[1728850808754,0.23877516,62688.0,62687.0,0.081773]
[1728850809866,0.23877516,62688.0,62687.0,0.002]
[1728850811060,0.15984457,62688.0,62687.0,0.002]
[1728850811265,0.23875763,62688.0,62687.0,0.002]
[1728850814463,0.110872,62688.0,62687.0,0.04985226]
[1728850814667,0.110872,62688.0,62687.0,0.002]
[1728850815063,0.110872,62688.0,62687.0,0.04983934]
[1728850815262,0.110872,62688.0,62687.0,0.002]
[1728850815572,0.110872,62688.0,62687.0,0.04983887]
[1728850822558,0.110872,62688.0,62687.0,0.002]
[1728850827169,0.110872,62688.0,62687.0,0.081773]
[1728850829468,0.39818464,62688.0,62687.0,0.081773]
[1728850830268,0.39817949,62688.0,62687.0,0.081773]
[1728850831276,0.23877288,62688.0,62687.0,0.081773]
[1728850835085,0.23892738,62688.0,62687.0,0.081773]
[1728850836666,0.110872,62688.0,62687.0,0.14560255]
[1728850844583,0.1598443,62688.0,62687.0,0.081773]
[1728850844778,0.23885021,62688.0,62687.0,0.081773]
[1728850851785,0.110872,62688.0,62687.0,0.081773]
[1728850856894,0.110872,62688.0,62687.0,0.1456339]
[1728850858294,0.110872,62688.0,62687.0,0.081773]
[1728850859388,0.110872,62688.0,62687.0,0.0658609]
[1728850859592,0.110872,62688.0,62687.0,0.002]
[1728850859593,0.23853086,62688.0,62687.0,0.002]
[1728850859892,0.34875272,62688.0,62687.0,0.002]
[1728850860091,0.40597971,62688.0,62687.0,0.002]
[1728850860996,0.40597971,62688.0,62681.0,0.0111]
[1728850860997,0.079779,62682.0,62681.0,0.0111]
[1728850861188,0.079779,62682.0,62676.0,0.0111]
[1728850861189,0.079786,62677.0,62676.0,0.0111]
[1728850861492,0.079787,62676.0,62675.0,0.0324]
[1728850861683,0.56846772,62676.0,62675.0,0.0324]
[1728850862084,0.56846772,62676.0,62674.0,0.00239303]
[1728850862085,0.5485512,62676.0,62674.0,0.00239303]
[1728850862286,0.20652296,62675.0,62674.0,0.00239303]
[1728850863490,0.34985708,62675.0,62674.0,0.00239303]
[1728850863992,0.71065708,62675.0,62674.0,0.00239303]
[1728850864389,0.56732296,62675.0,62674.0,0.00239303]
[1728850865389,0.5183392,62675.0,62674.0,0.00239303]
[1728850866085,0.54674434,62675.0,62674.0,0.00239303]
[1728850866397,0.54974434,62675.0,62674.0,0.00339303]
[1728850866593,0.47199314,62675.0,62674.0,0.00339303]
[1728850867596,0.11119314,62675.0,62674.0,0.00339303]
[1728850867799,0.47199314,62675.0,62674.0,0.00339303]
[1728850868096,0.58199314,62675.0,62674.0,0.00339303]
[1728850868999,0.22119314,62675.0,62674.0,0.00339303]
[1728850869195,0.58199314,62675.0,62674.0,0.00339303]
[1728850870096,0.47199314,62675.0,62674.0,0.00339303]
[1728850870402,0.553588,62675.0,62674.0,0.00339303]
[1728850871494,0.553588,62675.0,62674.0,0.19318203]
[1728850871495,0.003,62675.0,62674.0,0.19318203]
[1728850871691,0.003,62675.0,62674.0,0.08318203]
[1728850871888,0.003,62675.0,62674.0,0.14704293]
[1728850872291,0.003,62675.0,62674.0,0.08318203]
[1728850872696,0.003,62675.0,62674.0,0.14685925]
[1728850876500,0.003,62675.0,62674.0,0.08318203]
[1728850881609,0.11872977,62675.0,62674.0,0.08318203]
[1728850882202,0.16045935,62675.0,62674.0,0.08318203]
[1728850882408,0.16045969,62675.0,62674.0,0.08318203]
[1728850883009,0.11872977,62675.0,62674.0,0.08318203]
[1728850883213,0.1604717,62675.0,62674.0,0.08318203]
[1728850885611,0.16045595,62675.0,62674.0,0.08318203]
[1728850886711,0.16045346,62675.0,62674.0,0.08318203]
[1728850889709,0.003,62675.0,62674.0,0.08318203]
[1728850891321,0.079781,62681.0,62680.0,0.079779]
[1728850891521,0.220677,62685.0,62684.0,0.079777]
[1728850891912,0.189777,62685.0,62684.0,0.079777]
[1728850892119,0.079777,62685.0,62684.0,0.12764421]
[1728850892311,0.079777,62685.0,62684.0,0.079777]
[1728850892618,0.001,62685.0,62684.0,0.14460086]
[1728850892810,0.001,62685.0,62684.0,0.080777]
[1728850893518,0.0037,62689.0,62688.0,0.079772]
[1728850893821,0.0037,62694.0,62692.0,0.079766]
[1728850894018,0.079763,62695.0,62693.0,0.079765]
[1728850894213,0.079764,62694.0,62693.0,0.079765]
[1728850895424,0.080764,62694.0,62693.0,0.081765]
[1728850896815,0.16637165,62694.0,62693.0,0.081765]
[1728850897018,0.20891232,62694.0,62693.0,0.081765]
[1728850898409,0.35196963,62694.0,62693.0,0.081765]
[1728850899514,0.20891232,62694.0,62693.0,0.081765]
[1728850900023,0.35196963,62694.0,62693.0,0.081765]
[1728850900907,0.20891232,62694.0,62693.0,0.081765]
[1728850901620,0.15994459,62694.0,62693.0,0.081765]
[1728850902219,0.20891164,62694.0,62693.0,0.081765]
[1728850902426,0.15994459,62694.0,62693.0,0.081765]
[1728850902721,0.20891169,62694.0,62693.0,0.002]
[1728850903118,0.2089123,62694.0,62693.0,0.002]
[1728850903519,0.15994459,62694.0,62693.0,0.002]
[1728850903724,0.20891186,62694.0,62693.0,0.002]
[1728850903913,0.35196917,62694.0,62693.0,0.002]
[1728850904225,0.20891186,62694.0,62693.0,0.002]
[1728850904815,0.080764,62694.0,62693.0,0.002]
[1728850908621,0.190764,62694.0,62693.0,0.002]
[1728850910619,0.080764,62694.0,62693.0,0.002]
[1728850910819,0.00239303,62701.0,62693.0,1.521085]
[1728850911028,0.00239303,62701.0,62700.0,0.189756]
[1728850911526,0.079749,62706.0,62705.0,0.079747]
[1728850912336,0.11,62708.0,62707.0,0.079747]
[1728850913921,0.189746,62708.0,62707.0,0.079747]
[1728850914123,0.189746,62708.0,62707.0,0.080747]
[1728850914628,0.41991209,62714.0,62707.0,0.080747]
[1728850914629,0.079742,62711.0,62710.0,0.079743]
[1728850914824,0.189742,62711.0,62710.0,0.079743]
[1728850915019,0.079741,62712.0,62707.0,0.112]
[1728850915329,0.11,62712.0,62711.0,0.079742]
[1728850917318,0.11,62712.0,62711.0,0.080742]
[1728850917523,0.189741,62712.0,62711.0,0.081742]
[1728850919821,0.189741,62712.0,62706.0,0.02847941]
[1728850919822,0.13041922,62712.0,62706.0,0.02847941]
[1728850920021,0.26954837,62709.0,62708.0,0.079746]
[1728850920233,0.24041922,62709.0,62708.0,0.079746]
[1728850920528,0.32016422,62709.0,62708.0,0.079746]
[1728850920728,0.37871573,62709.0,62708.0,0.079746]
[1728850921225,0.24829651,62709.0,62708.0,0.079746]
[1728850921528,0.31775999,62709.0,62708.0,0.079746]
[1728850921730,0.31775999,62709.0,62708.0,0.080746]
[1728850921930,0.3763115,62709.0,62708.0,0.080746]
[1728850923321,0.3773115,62709.0,62708.0,0.081746]
[1728850924520,0.49331953,62709.0,62708.0,0.081746]
[1728850924932,0.55187104,62709.0,62708.0,0.081746]
[1728850926228,0.55186893,62709.0,62708.0,0.081746]
[1728850926830,0.36530454,62709.0,62708.0,0.081746]
[1728850927037,0.190745,62709.0,62708.0,0.081746]
[1728850928733,0.190745,62709.0,62708.0,0.002]
[1728850929140,0.190745,62709.0,62708.0,0.081746]
[1728850938436,0.22735809,62709.0,62708.0,0.081746]
[1728850940250,0.22736956,62709.0,62708.0,0.081746]
[1728850940434,0.33844275,62709.0,62708.0,0.081746]
[1728850941240,0.22736956,62709.0,62708.0,0.081746]
[1728850941440,0.33844275,62709.0,62708.0,0.081746]
[1728850941837,0.190745,62709.0,62708.0,0.18835279]
[1728850944945,0.190745,62709.0,62708.0,0.18844465]
[1728850946945,0.190745,62709.0,62708.0,0.18842298]
[1728850949934,0.27002717,62709.0,62708.0,0.081746]
[1728850956048,0.11283556,62711.0,62708.0,0.081746]
[1728850956249,0.11,62709.0,62708.0,0.081746]
[1728850956649,0.189745,62709.0,62708.0,0.081746]
[1728850956848,0.11,62709.0,62708.0,0.28420784]
[1728850957647,0.189745,62709.0,62708.0,0.28420784]
[1728850959254,0.189745,62709.0,62708.0,0.28499532]
[1728850963150,0.189745,62709.0,62708.0,0.18921801]
[1728850963949,0.189745,62709.0,62708.0,0.18921984]
[1728850965060,0.189745,62709.0,62708.0,0.26901289]
[1728850968156,0.079745,62709.0,62708.0,0.26901289]
[1728850968361,0.079745,62709.0,62708.0,0.16153905]
[1728850969157,0.079745,62709.0,62708.0,0.26901537]
[1728850969659,0.189741,62712.0,62711.0,0.079742]
[1728850970958,0.189741,62712.0,62711.0,0.080742]
[1728850971648,0.189741,62712.0,62711.0,0.081742]
[1728850971853,0.22553429,62712.0,62711.0,0.081742]
[1728850972065,0.26709198,62712.0,62711.0,0.081742]
[1728850973663,0.07735098,62712.0,62711.0,0.552542]
[1728850974165,0.12760615,62712.0,62711.0,0.552542]
[1728850974861,0.20495713,62712.0,62711.0,0.552542]
[1728850975164,0.20495713,62712.0,62711.0,0.442542]
[1728850975661,0.12760615,62712.0,62711.0,0.442542]
[1728850975960,0.20495713,62712.0,62711.0,0.442542]
[1728850976660,0.07735098,62712.0,62711.0,0.442542]
[1728850976858,0.25352705,62714.0,62711.0,0.3628]
[1728850977058,0.07751035,62713.0,62712.0,0.079741]
[1728850978466,0.07751035,62713.0,62712.0,0.080741]
[1728850979357,0.03586704,62713.0,62712.0,0.080741]
[1728850979765,0.11163792,62715.0,62713.0,0.07974]
[1728850979967,0.079732,62719.0,62718.0,0.079733]
[1728850981260,0.079732,62719.0,62718.0,0.14350103]
[1728850981666,0.079732,62719.0,62718.0,0.14450103]
[1728850982961,0.079732,62719.0,62718.0,0.50630103]
[1728850983261,0.11,62720.0,62718.0,0.42656803]
[1728850983467,0.11,62720.0,62719.0,0.079732]
[1728850984959,0.0037,62726.0,62721.0,0.07973]
[1728850985176,0.0037,62730.0,62729.0,0.079719]
[1728850985464,0.189718,62730.0,62729.0,0.12746001]
[1728850985857,0.189718,62730.0,62729.0,0.12745947]
[1728850986367,0.189718,62730.0,62729.0,0.079719]
[1728850986959,0.31751736,62730.0,62729.0,0.079719]
[1728850987165,0.31751736,62730.0,62729.0,0.080719]
[1728850987463,0.47660567,62730.0,62729.0,0.080719]
[1728850987860,0.47660567,62730.0,62729.0,0.001]
[1728850987861,0.72978051,62730.0,62729.0,0.001]
[1728850988062,0.079719,62729.0,62720.0,0.0037]
[1728850988372,0.079719,62729.0,62714.0,0.079738]
[1728850988373,0.079735,62717.0,62714.0,0.079738]
[1728850988566,0.079735,62717.0,62715.0,0.028072]
[1728850988567,0.26859661,62717.0,62715.0,0.028072]
[1728850988872,0.26859661,62717.0,62715.0,0.079737]
[1728850989269,0.42754604,62717.0,62715.0,0.079737]
[1728850989477,0.48474377,62717.0,62715.0,0.079737]
[1728850989866,0.37474377,62717.0,62715.0,0.079737]
[1728850990373,0.28930202,62717.0,62715.0,0.079737]
[1728850990669,0.37327596,62717.0,62715.0,0.079737]
[1728850990875,0.37427596,62717.0,62715.0,0.079737]
[1728850995179,0.190735,62717.0,62715.0,0.12747747]
[1728850996276,0.190735,62717.0,62715.0,0.04774047]
[1728850997979,0.551535,62717.0,62715.0,0.04774047]
[1728851001985,0.551535,62717.0,62714.0,0.079738]
[1728851002482,0.551535,62717.0,62715.0,0.079737]
[1728851005488,0.551535,62717.0,62712.0,0.07974]
[1728851005688,0.551535,62717.0,62714.0,0.079738]
[1728851007482,0.551535,62717.0,62715.0,0.079737]
[1728851008884,0.551535,62717.0,62710.0,0.04774047]
[1728851009190,0.551535,62717.0,62710.0,0.12748347]
[1728851009191,0.079742,62711.0,62710.0,0.12748347]
[1728851009389,0.189742,62711.0,62710.0,0.12748347]
[1728851010475,0.189742,62711.0,62710.0,0.080743]
[1728851011382,0.079751,62706.0,62705.0,0.079749]
[1728851011688,0.079751,62704.0,62703.0,0.031]
[1728851011885,0.079751,62704.0,62703.0,0.110752]
[1728851012890,0.079751,62704.0,62703.0,0.220752]
[1728851013091,0.079751,62704.0,62703.0,0.24949448]
[1728851015391,0.189748,62708.0,62707.0,0.079747]
[1728851016786,0.190748,62708.0,62707.0,0.079747]
[1728851020598,0.22628403,62708.0,62707.0,0.079747]
[1728851022592,0.22630471,62708.0,62707.0,0.079747]
[1728851024299,0.22630655,62708.0,62707.0,0.079747]
[1728851025397,0.190748,62708.0,62707.0,0.079747]
[1728851028287,0.190748,62708.0,62706.0,0.06374655]
[1728851028499,0.079747,62707.0,62706.0,0.14349555]
[1728851029794,0.080747,62707.0,62706.0,0.14349555]
[1728851033498,0.15742261,62707.0,62706.0,0.079749]
[1728851033904,0.15742097,62707.0,62706.0,0.079749]
[1728851034811,0.28487429,62707.0,62706.0,0.079749]
[1728851036511,0.15742097,62707.0,62706.0,0.079749]
[1728851036702,0.28490462,62707.0,62706.0,0.079749]
[1728851037107,0.15742097,62707.0,62706.0,0.079749]
[1728851037402,0.28490476,62707.0,62706.0,0.079749]
[1728851038709,0.15742097,62707.0,62706.0,0.079749]
[1728851039302,0.28490698,62707.0,62706.0,0.079749]
[1728851039608,0.15742097,62707.0,62706.0,0.079749]
[1728851040397,0.080747,62707.0,62706.0,0.079749]
[1728851044720,0.080747,62707.0,62706.0,0.26702818]
[1728851044902,0.080747,62707.0,62706.0,0.15943218]
[1728851048414,0.15760943,62707.0,62706.0,0.079749]
[1728851050312,0.07786243,62707.0,62706.0,0.440549]
[1728851050507,0.001,62707.0,62706.0,0.440549]
[1728851051610,0.11261451,62707.0,62706.0,0.440549]
[1728851051816,0.14835955,62707.0,62706.0,0.440549]
[1728851052518,0.03674504,62707.0,62706.0,0.440549]
[1728851054718,0.03674504,62707.0,62706.0,0.079749]
[1728851056118,0.001,62707.0,62706.0,0.079749]
[1728851063114,0.001,62707.0,62706.0,0.18714649]
[1728851064015,0.001,62707.0,62706.0,0.15948045]
[1728851064217,0.001,62707.0,62706.0,0.26694544]
[1728851065720,0.001,62707.0,62706.0,0.2669474]
[1728851066220,0.080747,62707.0,62706.0,0.26694653]
[1728851068425,0.190747,62707.0,62706.0,0.26694653]
[1728851068617,0.190747,62707.0,62706.0,0.26695191]
[1728851068823,0.190747,62707.0,62706.0,0.15948154]
[1728851069119,0.190747,62707.0,62706.0,0.079749]
[1728851069319,0.190747,62707.0,62706.0,0.26695885]
[1728851069519,0.190747,62707.0,62706.0,0.15948154]
[1728851069820,0.4718,62707.0,62705.0,0.07973254]
[1728851070026,0.189749,62706.0,62701.0,0.07973254]
[1728851070321,0.079751,62704.0,62703.0,0.06380251]
[1728851070525,0.079749,62706.0,62702.0,0.06380251]
[1728851070819,0.07975,62705.0,62704.0,0.04784103]
[1728851071216,0.07975,62705.0,62700.0,0.079756]
[1728851071217,0.079755,62701.0,62700.0,0.079756]
[1728851071520,0.22498859,62701.0,62700.0,0.079756]
[1728851071727,0.33641521,62701.0,62700.0,0.079756]
[1728851072019,0.22498859,62701.0,62700.0,0.079756]
[1728851073029,0.22498859,62701.0,62700.0,0.081756]
[1728851073823,0.22498859,62701.0,62700.0,0.082756]
[1728851077730,0.03523359,62701.0,62700.0,0.082756]
[1728851077926,0.189752,62704.0,62700.0,0.003]
[1728851078127,0.189752,62704.0,62703.0,0.17549124]
[1728851078330,0.189752,62704.0,62703.0,0.28300611]
[1728851079726,0.190752,62704.0,62703.0,0.18726687]
[1728851082627,0.190752,62704.0,62703.0,0.28300611]
[1728851083027,0.190752,62704.0,62703.0,0.18726687]
[1728851083239,0.080752,62704.0,62703.0,0.18726687]
[1728851083541,0.080752,62704.0,62703.0,0.28300611]
[1728851084824,0.080752,62704.0,62703.0,0.17549124]
[1728851085030,0.080752,62704.0,62703.0,0.28303834]
[1728851086332,0.080752,62704.0,62703.0,0.079752]
[1728851090230,0.080752,62704.0,62700.0,0.07969807]
[1728851090431,0.080752,62704.0,62702.0,0.0637683]
[1728851090432,0.079752,62703.0,62702.0,0.0637683]
[1728851090737,0.079754,62702.0,62701.0,0.0637683]
[1728851091238,0.189754,62702.0,62701.0,0.0637683]
[1728851091440,0.189754,62702.0,62701.0,0.1435233]
[1728851093132,0.189754,62702.0,62701.0,0.079755]
[1728851093333,0.22502801,62702.0,62701.0,0.079755]
[1728851093537,0.22502801,62702.0,62701.0,0.080755]
[1728851094643,0.22502111,62702.0,62701.0,0.080755]
[1728851095742,0.33644773,62702.0,62701.0,0.001]
[1728851095947,0.22502111,62702.0,62701.0,0.001]
[1728851097342,0.26589862,62702.0,62701.0,0.001]
[1728851097647,0.26592843,62702.0,62701.0,0.001]
[1728851101345,0.189754,62702.0,62701.0,0.14452385]
[1728851101547,0.189754,62702.0,62701.0,0.14453768]
[1728851101745,0.189754,62702.0,62701.0,0.1445379]
[1728851102250,0.189754,62702.0,62701.0,0.080755]
[1728851102545,0.079754,62702.0,62701.0,0.14453734]
[1728851103547,0.079754,62702.0,62701.0,0.080755]
[1728851107556,0.189754,62702.0,62701.0,0.080755]
[1728851108255,0.26608323,62702.0,62701.0,0.080755]
[1728851110143,0.31504391,62702.0,62701.0,0.080755]
[1728851110455,0.26608323,62702.0,62701.0,0.080755]
[1728851111864,0.31506827,62702.0,62701.0,0.080755]
[1728851112152,0.31506739,62702.0,62701.0,0.080755]
[1728851112556,0.31506733,62702.0,62701.0,0.080755]
[1728851112760,0.3150682,62702.0,62701.0,0.080755]
[1728851115254,0.34363904,62702.0,62701.0,0.080755]
[1728851115842,0.34363904,62702.0,62696.0,0.0037]
[1728851115843,0.73468448,62702.0,62696.0,0.0037]
[1728851116150,0.73468448,62702.0,62693.0,0.00609228]
[1728851116151,0.079764,62694.0,62693.0,0.00609228]
[1728851116352,0.20735194,62694.0,62693.0,0.00239228]
[1728851116555,0.20735194,62694.0,62690.0,0.06380056]
[1728851116556,0.11,62694.0,62690.0,0.06380056]
[1728851116752,0.3916,62695.0,62691.0,0.0478583]
[1728851116956,0.11,62692.0,62691.0,0.0478583]
[1728851117152,0.079768,62691.0,62688.0,0.0478583]
[1728851117358,0.55057,62689.0,62688.0,0.0478583]
[1728851117553,0.079773,62687.0,62686.0,0.06380056]
[1728851117856,0.189773,62687.0,62686.0,0.06380056]
[1728851118256,0.079774,62686.0,62685.0,0.06380056]
[1728851119254,0.079775,62685.0,62684.0,0.14357656]
[1728851119858,0.079775,62685.0,62684.0,0.06380056]
[1728851120051,0.079775,62685.0,62683.0,0.04779306]
[1728851120262,0.1423,62684.0,62682.0,0.04779306]
[1728851120554,0.1423,62684.0,62681.0,0.04779306]
[1728851120555,0.079779,62682.0,62681.0,0.04779306]